{"text_format":"3","workbook":"xlsx","n_sheets":1,"sheets":["ПФХД"],"read":"whole","date_system":"1900"}

{"sheet":"ПФХД","index":0,"n_rows":157,"n_cols":12,"rows_kept":157,"merged":[[6,1,6,11],[7,1,7,11],[8,0,8,9],[9,1,9,9],[11,1,12,4],[11,5,12,8],[15,1,15,4],[15,5,15,8],[18,1,18,11],[19,1,22,4],[19,5,22,5],[19,6,22,6],[19,7,22,7],[19,8,19,11],[20,8,22,8],[20,9,22,9],[20,10,22,10],[20,11,22,11],[23,1,23,4],[24,1,24,4],[25,1,25,4],[26,1,26,4],[27,1,27,4],[28,2,28,4],[29,2,29,4],[30,3,30,4],[31,3,31,4],[32,2,32,4],[33,3,33,4],[34,3,34,4],[35,3,35,4],[36,2,36,4],[37,3,37,4],[38,2,38,4],[39,3,39,4],[40,3,40,4],[41,3,41,4],[42,2,42,4],[43,3,43,4],[44,2,44,4],[45,3,45,4],[46,2,46,4],[47,3,47,4],[48,3,48,4],[49,1,49,4],[50,2,50,4],[51,2,51,4],[52,3,52,4],[53,3,53,4],[54,3,54,4],[55,3,55,4],[56,3,56,4],[60,3,60,4],[61,3,61,4],[62,3,62,4],[63,3,63,4],[67,2,67,4],[68,3,68,4],[69,3,69,4],[72,3,72,4],[73,3,73,4],[74,3,74,4],[75,2,75,4],[76,3,76,4],[77,3,77,4],[78,3,78,4],[79,3,79,4],[80,2,80,4],[81,3,81,4],[82,3,82,4],[83,3,83,4],[84,3,84,4],[85,2,85,4],[86,3,86,4],[87,2,87,4],[88,3,88,4],[89,3,89,4],[90,3,90,4],[91,3,91,4],[92,3,92,4],[94,3,94,4],[95,3,95,4],[100,1,100,4],[101,2,101,4],[102,2,102,4],[103,2,103,4],[104,2,104,4],[106,1,106,4],[107,2,107,4],[108,2,108,4],[110,1,110,11],[111,1,113,5],[111,6,113,6],[111,7,113,7],[111,8,111,11],[112,8,113,8],[112,9,113,9],[112,10,113,10],[112,11,113,11],[114,1,114,5],[115,1,115,5],[116,2,116,5],[117,2,117,5],[118,2,118,5],[119,3,119,5],[120,3,120,5],[121,2,121,5],[122,3,122,5],[123,4,123,5],[124,4,124,5],[125,3,125,5],[126,4,126,5],[127,4,127,5],[128,3,128,5],[129,3,129,5],[130,4,130,5],[131,4,131,5],[132,3,132,5],[133,4,133,5],[134,4,134,5],[135,1,135,5],[136,1,136,5],[137,2,137,5],[138,1,138,5],[139,1,139,5],[140,1,140,5],[141,1,141,5],[142,2,142,5],[144,0,144,12],[145,1,145,12],[148,1,148,11]]}
[{"$nulls":9},"Утверждаю"]
[{"$nulls":8},"Руководитель исполнительного комитета \"ЕМР\""]
[{"$nulls":8},"                                   Исполнительный комитет ЕМР"]
[{"$nulls":8}," _____________________________ Э.Р.Ахмадеева"]
[{"$nulls":8},"        30 декабрь 2023г"]
[]
[null,"План финансово-хозяйственной деятельности на 2024 г."]
[null,"(на 2024 г. и плановый период 2025 г. и 2026 годов)"]
["                                           от 29 декабря 2023г"]
[{"$nulls":11},"КОДЫ"]
[{"$nulls":10},"Дата","01.02.2024"]
[null,"Орган, осуществлюящий функции и полномочия учредителя",{"$nulls":3},"ИСПОЛНИТЕЛЬНЫЙ КОМИТЕТ ЕЛАБУЖСКОГО МУНИЦИПАЛЬНОГО РАЙОНА РЕСПУБЛИКИ ТАТАРСТАН",{"$nulls":4},"по Сводному реестру"]
[{"$nulls":10},"глава по БК","813"]
[{"$nulls":10},"по Сводному реестру"]
[{"$nulls":10},"ИНН","1646009987"]
[null,"Учреждение",{"$nulls":3},"МБДОУ \"Детский сад комбинированного вида № 25 \"Родничок\"  ЕМР РТ",{"$nulls":4},"КПП","164601001"]
[null,"Единица измерения: рублей",{"$nulls":8},"по ОКЕИ","383"]
[]
[null,"1. Поступления и выплаты"]
[null,"Наименование показателя",{"$nulls":3},"Код строки","Код по бюджетной классификации Российской Федерации <3>","Аналитический код <4>","Сумма"]
[{"$nulls":8},"на 2024 г. (текущий финансовый год)","на 2025 г. (первый год планового периода)","на 2026 г. (второй год планового периода)","за пределами планового периода"]
[]
[]
[null,1,{"$nulls":3},2,3,4,5,6,7,8]
[null,"Остаток средств на начало текущего финансового года <5>",{"$nulls":3},"0001","X","X",1693552.08," - "," - "," - "]
[null,"Остаток средств на конец текущего финансового года <5>",{"$nulls":3},"0002","X","X"," - "," - "," - "," - "]
[]
[null,"Доходы - всего:",{"$nulls":3},"1000","X","",45849119.38,45849119.38,45849119.38," - "]
[null,null,"в том числе"]
[null,null,"доходы от собственности - всего",null,null,"1100","120","",616750,616750,616750," - "]
[{"$nulls":3},"в том числе:",{"$nulls":3},"",616750,616750,616750," - "]
["",null,null,"",null,"1110","","",616750,616750,616750," - "]
[null,null,"доходы от оказания услуг, работ, компенсации затрат учреждений - всего",null,null,"1200","130","",45232369.38,45232369.38,45232369.38," - "]
[{"$nulls":3},"в том числе:"]
[{"$nulls":3},"субсидии на финансовое обеспечение выполнения госуларственного задания за счет средств бюджета публично-правового образования, создавшего учреждение",null,"1210","130","",45232369.38,45232369.38,45232369.38," - "]
[{"$nulls":3},"субсидии на финансовое обеспечение выполнения государственного задания за счет средств бюджета Федерального фонда обязательного медицинского страхования",null,"1220","130",""," - "," - "," - "," - "]
[null,null,"доходы от штрафов, пеней, иных сумм принудительного изъятия - всего",null,null,"1300","140",""," - "," - "," - "," - "]
[{"$nulls":3},"в том числе:"]
[null,null,"безвозмездные денежные поступления -  всего ",null,null,"1400","150",""," - "," - "," - "," - "]
[{"$nulls":3},"в том числе:"]
[{"$nulls":3},"целевые субсидии",null,"1410","150",""," - "," - "," - "," - "]
[{"$nulls":3},"субсидии на осуществление капитальных вложений",null,"1420","150",""," - "," - "," - "," - "]
[null,null,"прочие доходы - всего",null,null,"1500","180",""," - "," - "," - "," - "]
[{"$nulls":3},"в том числе:"]
[null,null,"доходы от операций с активами - всего",null,null,"1900",null,""," - "," - "," - "," - "]
[{"$nulls":3},"в том числе:"]
[null,null,"прочие посупления - всего <6>",null,null,"1980","X",""," - "," - "," - "," - "]
[{"$nulls":3},"из них: и прошлых лет"]
[{"$nulls":3},"увеличение остатков денежных средств за счет возврата дебиторской задолженности прошлых лет",null,"1981","510",""," - "," - "," - "," - "]
[null,"Расходы - всего",{"$nulls":3},"2000","X","",{"$f":"I52+I76+I88","v":47542671.46},{"$f":"J52+J76+J88","v":45849119.379999995},45849119.379999995," - "]
[null,null,"в том числе:"]
[null,null,"на выплату персоналу - всего",null,null,"2100","X","",33245515.33,33245515.33,33245515.33," - "]
[{"$nulls":3},"в том числе:"]
[{"$nulls":3},"оплата труда",null,"2110","111","",25525891.06,25525891.06,25525891.06," - "]
[{"$nulls":3},"прочие выплаты персоналу, в том числе компенсационного характера",null,"2120","112","",10800,10800,10800," - "]
[{"$nulls":3},"иные выплаты, за исключением фонда оплаты труда учреждения, для выполнения отдельных полномочий",null,"2130","113",""," - "," - "," - "," - "]
[{"$nulls":3},"взносы по обязательному социальному страхованию на выплаты по оплате труда работников и иные выплаты работников учреждений - всего",null,"2140","119","",7708824.27,7708824.27,7708824.27," - "]
[{"$nulls":4},"в том числе:"]
[{"$nulls":4},"на выплаты по оплате труда","2141","119","",7708824.27,7708824.27,7708824.27," - "]
[{"$nulls":4},"на иные выплаты работникам","2142","119",""," - "," - "," - ","X"]
[{"$nulls":3},"денежное довольствие военнослужащих и сотрудников, имеющих специальные звания",null,"2150","131",""," - "," - "," - ","X"]
[{"$nulls":3},"расходы на выплаты военнослужащим и сотрудникам, имеющим специальные звания, зависящие от размера денежного довольствия",null,"2160","133",""," - "," - "," - ","X"]
[{"$nulls":3},"иные выплаты военнослужащим и сотрудникам, имеющим специальные звания",null,"2170","134",""," - "," - "," - ","X"]
[{"$nulls":3},"страховые взносы на обязательное социальное страхование в части выплат персоналу, подлежащих обложению страховыми взносами",null,"2180","139",""," - "," - "," - ","X"]
[{"$nulls":4},"в том числе:"]
[{"$nulls":4},"на оплату труда стажеров","2181","139",""," - "," - "," - ","X"]
[{"$nulls":4},"на иные выплаты гражданским лицам (денежное содержание)","2182","139",""," - "," - "," - ","X"]
[null,null,"социальные и иные выплаты населению - всего",null,null,"2200","300",""," - "," - "," - ","X"]
[{"$nulls":3},"в том числе:",{"$nulls":7},"X"]
[{"$nulls":3},"социальные выплаты гражданам, кроме публичных нормативных социальных выплат",null,"2210","320",""," - "," - "," - ","X"]
[{"$nulls":4},"из них:",{"$nulls":6},"X"]
[{"$nulls":4},"пособия, компенсации и иные социальные выплаты гражданам, кроме публичных нормативных обязательств","2211","321",""," - "," - "," - ","X"]
[{"$nulls":3},"выплата стипендий, осуществление иных расходов на социальную поддержку обучающихся за счет средств стипендиального фонда",null,"2220","340",""," - "," - "," - ","X"]
[{"$nulls":3},"на премирование физических лиц за достижения в области культуры, искусства, образования, науки и техники, а также на предоставление грантов с целью поддержки проектов в области науки, культуры и искусства",null,"2230","350",""," - "," - "," - ","X"]
[{"$nulls":3},"социальное обеспечение детей-сирот и детей, оставшихся без попечения родителей",null,"2240","360",""," - "," - "," - ","X"]
[null,null,"уплата налогов, сборов и иных платежей - всего",null,null,"2300","850","",550445,550445,550445,"X"]
[{"$nulls":3},"из них:"]
[{"$nulls":3},"налог на имущество организаций и земельный налог",null,"2310","851","",550445,550445,550445,"X"]
[{"$nulls":3},"иные налоги (включаемые в состав расходов) в бюджеты бюджетной системы Российской Федерации, а также государственная пошлина",null,"2320","852",""," - "," - "," - ","X"]
[{"$nulls":3},"уплата штрафов (в том числе административных), пеней, иных платежей",null,"2330","853",""," - "," - "," - ","X"]
[null,null,"безвозмездные перечисления организациям и физическим лицам - всего",null,null,"2400","X",""," - "," - "," - ","X"]
[{"$nulls":3},"из них:"]
[{"$nulls":3},"гранты, предоставляемые другим организациям и физическим лицам",null,"2410","810",""," - "," - "," - ","X"]
[{"$nulls":3},"взносы в международные организации",null,"2420","862",""," - "," - "," - "," - "]
[{"$nulls":3},"платежи в целях обеспечения реализации соглашений с правительствами иностранных государств и международными организациями",null,"2430","863",""," - "," - "," - ","X"]
[null,null,"прочие выплаты (кроме выплат на закупку товаров, работ, услуг)",null,null,"2500","X",""," - "," - "," - ","X"]
[{"$nulls":3},"исполнение судебных актов Российской Федерации и мировых соглашений по возмещению вреда, причиненного в результате деятельности учреждения",null,"2520","831",""," - "," - "," - ","X"]
[null,null,"расходы на закупку товаров, работ, услуг - всего",null,null,"2600","X","",{"$f":"I93+I95","v":13746711.13},{"$f":"J93+J95","v":12053159.05},12053159.05," - "]
[{"$nulls":3},"в том числе"]
[{"$nulls":3},"на закупку научно-исследовательских и опытно-конструкторских работ",null,"2610","241",""," - "," - "," - "," - "]
[{"$nulls":3},"на закупку товаров, работ, услуг в сфере информационно-коммуникационных технологий",null,"2620","242",""," - "," - "," - "," - "]
[{"$nulls":3},"на закупку товаров, работ, услуг в целях капитального ремонта государственного имущества",null,"2630","243",""," - "," - "," - "," - "]
[{"$nulls":3},"на прочую закупку товаров, работ и услуг - всего",null,"2640","244","",{"$f":"9374459.05+I25","v":11068011.13},9374459.05,9374459.05," - "]
[{"$nulls":4},"из них"]
[{"$nulls":3},"на закупку энергетических ресурсов",null,2650,247,"",2678700,2678700,2678700," - "]
[{"$nulls":3},"капитальные вложения в объекты государственной собственности - всего",null,"2700","400",""," - "," - "," - "," - "]
[{"$nulls":4},"в том числе"]
[{"$nulls":4},"приобретение объектов недвижимого имущества государственными учреждениями","2710","406",""," - "," - "," - "," - "]
[{"$nulls":4},"строительство (реконструкция) объектов недвижимого имущества государственными учреждениями","2720","407",""," - "," - "," - "," - "]
[]
[null,"Выплаты, уменьшающие доход - всего",{"$nulls":3},"3000","100",""," - "," - "," - "," - "]
[null,null,"в том числе:"]
[null,null,"налог на прибыль ",null,null,"3010","",""," - "," - "," - "," - "]
[null,null,"налог на добавленную стоимость",null,null,"3020","",""," - "," - "," - "," - "]
[null,null,"прочие налоги, уменьшающие доход",null,null,"3030","",""," - "," - "," - "," - "]
[]
[null,"Прочие выплаты",{"$nulls":3},"4000","",""," - "," - "," - "," - "]
[null,null,"из них:"]
[null,null,"возврат в бюджет средств субсидии",null,null,"4010","610",""," - "," - "," - "," - "]
[]
[null,"2. Сведения по выплатам на закупки товаров, работ, услуг <10>"]
[null,"Наименование показателя",{"$nulls":4},"Код строки","Год начала закупки","Сумма"]
[{"$nulls":8},"на 2024 г. (текущий финансовый год)","на 2025 г. (первый год планового периода)","на 2026 г. (второй год планового периода)","за пределами планового периода"]
[]
[null,1,{"$nulls":4},2,3,4,5,6,7]
[null,"Выплаты на закупки товаров, работ, услуг - всего",{"$nulls":4},"26000","X",{"$f":"I88","v":13746711.13},{"$f":"J88","v":12053159.05},12053159.05," - "]
[null,null,"в том числе:\nпо контрактам (договорам), заключенным до начала текущего финансового года без применения норм Федерального закона от 5 апреля 2013 года N 44-ФЗ \"О контрактной системе в сфере закупок товаров, работ, услуг для обеспечения государственных и муниципальных нужд\"",{"$nulls":3},"26100","X"," - "," - "," - "," - "]
[null,null,"по контрактам (договорам), планируемым к заключению в соответствующем финансовом году без применения норм Федерального закона от 5 апреля 2013 года N 44-ФЗ \"О контрактной системе в сфере закупок товаров, работ, услуг для обеспечения государственных и муниципальных нужд\" (далее Федеральный закон №44-ФЗ) и Федерального закона от 18 июля 2011 года N 223-ФЗ \"О закупках товаров, работ, услуг отдельными видами юридических лиц\" (далее Федеральный закон №223-ФЗ) ",{"$nulls":3},"26200","X"," - "," - "," - "," - "]
[null,null,"по контрактам (договорам), заключенным до начала текущего финансового года с учетом требований Федерального закона от 5 апреля 2013 года N 44-ФЗ и Федерального закона от 18 июля 2011 года N 223-ФЗ                                                                                                  в том числе:",{"$nulls":3},26300,"X",8665478.08,8665478.08,8665478.08," - "]
[{"$nulls":3},"в соответствии с Федеральным законом от 5 апреля 2013 года N 44-ФЗ",null,null,26310,"X",8665478.08,8665478.08,8665478.08," - "]
[{"$nulls":3},"в соответствии с Федеральным законом от 18 июля 2011 года N 223-ФЗ",null,null,26320,"X"," - "," - "," - "," - "]
[null,null,"по контрактам (договорам), планируемым к заключению в соответствующем финансовом году с учетом требований Федерального закона от 5 апреля 2013 года N 44-ФЗ и Федерального закона от 18 июля 2011 года N 223-ФЗ                                                                                                                     в том числе:",{"$nulls":3},26400,"X",{"$f":"I116-I119","v":5081233.050000001},{"$f":"J116-J119","v":3387680.9700000007},3387680.9700000007," - "]
[{"$nulls":3},"за счет субсидий, предоставляемых на финансовое обеспечение выполнения государственного задания                                                                                                             в том числе:",null,null,26410,"X",{"$f":"I122","v":5081233.050000001},{"$f":"J122","v":3387680.9700000007},3387680.9700000007," - "]
[{"$nulls":4},"в соответствии с Федеральным законом от 5 апреля 2013 года N 44-ФЗ",null,26411,"X",{"$f":"I123","v":5081233.050000001},3387680.9700000007,3387680.9700000007," - "]
[{"$nulls":4},"в соответствии с Федеральным законом от 18 июля 2011 года N 223-ФЗ",null,26412,"X"," - "," - "," - "," - "]
[{"$nulls":3},"за счет субсидий, предоставляемых в соответствии с абзацем вторым пункта 1 статьи 78.1 Бюджетного кодекса РоссийскойФедерации                                                                                                                в том числе",null,null,26420,"X"," - "," - "," - "," - "]
[{"$nulls":4},"в соответствии с Федеральным законом от 5 апреля 2013 года N 44-ФЗ",null,26421,"X"," - "," - "," - "," - "]
[{"$nulls":4},"в соответствии с Федеральным законом от 18 июля 2011 года N 223-ФЗ",null,26422,"X"," - "," - "," - "," - "]
[{"$nulls":3},"за счет субсидий, предоставляемых на осуществление капитальных вложений",null,null,26430,"X"," - "," - "," - "," - "]
[{"$nulls":3},"за счет средств обязательного медицинского страхования                                                                                                    в том числе:",null,null,26440,"X"," - "," - "," - "," - "]
[{"$nulls":4},"в соответствии с Федеральным законом от 5 апреля 2013 года N 44-ФЗ",null,26441,"X"," - "," - "," - "," - "]
[{"$nulls":4},"в соответствии с Федеральным законом от 18 июля 2011 года N 223-ФЗ",null,26442,"X"," - "," - "," - "," - "]
[{"$nulls":3},"за счет прочих источников финансового обеспечения                                                                                                      в том числе:",null,null,26450,"X"," - "," - "," - "," - "]
[{"$nulls":4},"в соответствии с Федеральным законом от 5 апреля 2013 года N 44-ФЗ",null,26451,"X"," - "," - "," - "," - "]
[{"$nulls":4},"в соответствии с Федеральным законом от 18 июля 2011 года N 223-ФЗ",null,26452,"X"," - "," - "," - "," - "]
[]
[null,"Итого по контрактам, планируемым к заключению в соответствующем финансовом году в соответствии с Федеральным законом от 5 апреля 2013 года N 44-ФЗ, по соответствующему году закупки",{"$nulls":4},26500,"X",{"$f":"I116","v":13746711.13},{"$f":"J116","v":12053159.05},{"$f":"K116","v":12053159.05}," - "]
[null,null,"в том числе по году начала закупки"]
["",{"$nulls":5},"26510","2024",{"$f":"I137","v":13746711.13},{"$f":"J137","v":12053159.05}," - "," - "]
["",{"$nulls":5},"26520","2025"," - "," - "," - "," - "]
["",{"$nulls":5},"26530","2026"," - "," - ",{"$f":"K137","v":12053159.05}," - "]
[null,"Итого по договорам, планируемым к заключению в соответствующем финансовом году в соответствии с Федеральным законом от 18 июля 2011 года N 223-ФЗ, по соответствующему году закупки",{"$nulls":4},26600,"X"," - "," - "," - "," - "]
[null,null,"в том числе по году начала закупки"]
[]
[]
[null,"Руководитель учреждения                                                                Заведующий ДОУ      ___________________________________________    Хуснутдинова В.М."]
[]
[]
[null,"Исполнитель                                     Экономист     ________________________    Зиннатуллина З.Н.         тел. 8(85557)4-86-63"]
[null,"29 декабрь 2023г"]
[]
[null,"СОГЛАСОВАНО"]
[]
[null,"Председатель  Финансово - Бюджетной палаты ЕМР РТ"]
[]
[null,"_______________________________       Садыкова Э.И."]
[null,"29 декабрь 2023г"]